[Event "*** Titled Tuesday Blitz"]
[Site "Chess.com"]
[Date "2020.05.12"]
[Round "6"]
[White "gross-aleks"]
[Black "SketchyMoves"]
[Result "1-0"]
[WhiteElo "2494"]
[BlackElo "2626"]
[TimeControl "180+1"]
[EndTime "11:06:21 PDT"]
[Termination "gross-aleks won on time"]

1. c4 {[%clk 0:03:00.9]} 1... b6 {[%clk 0:02:59.3]} 2. d4 {[%clk 0:02:58.9]}
2... Bb7 {[%clk 0:02:59]} 3. Nc3 {[%clk 0:02:58.5]} 3... e6 {[%clk 0:02:58.8]}
4. a3 {[%clk 0:02:58.1]} 4... f5 {[%clk 0:02:58]} 5. Nf3 {[%clk 0:02:52.9]} 5...
Nf6 {[%clk 0:02:58]} 6. g3 {[%clk 0:02:53]} 6... a5 {[%clk 0:02:46.3]} 7. Bg2
{[%clk 0:02:51.1]} 7... Ne4 {[%clk 0:02:44.9]} 8. O-O {[%clk 0:02:43.8]} 8...
Nxc3 {[%clk 0:02:43.8]} 9. bxc3 {[%clk 0:02:44.7]} 9... Be7 {[%clk 0:02:37.7]}
10. Ne5 {[%clk 0:02:35.6]} 10... Bxg2 {[%clk 0:02:34.8]} 11. Kxg2 {[%clk
0:02:36.5]} 11... d6 {[%clk 0:02:26.8]} 12. Nd3 {[%clk 0:02:33.8]} 12... Qd7
{[%clk 0:02:14.5]} 13. Nf4 {[%clk 0:02:33]} 13... g5 {[%clk 0:01:52.2]} 14. Nh3
{[%clk 0:02:26.4]} 14... h6 {[%clk 0:01:48.2]} 15. d5 {[%clk 0:02:24.2]} 15...
e5 {[%clk 0:01:44.8]} 16. e4 {[%clk 0:02:17.4]} 16... g4 {[%clk 0:01:33]} 17.
Ng1 {[%clk 0:02:16.1]} 17... fxe4 {[%clk 0:01:30.5]} 18. Qe2 {[%clk 0:02:07.5]}
18... Qf5 {[%clk 0:01:29.6]} 19. Re1 {[%clk 0:02:07.1]} 19... h5 {[%clk
0:01:06.3]} 20. Qxe4 {[%clk 0:02:05.8]} 20... Qxe4+ {[%clk 0:01:06]} 21. Rxe4
{[%clk 0:02:05.1]} 21... Nd7 {[%clk 0:01:06.9]} 22. Re2 {[%clk 0:01:52.9]} 22...
Nc5 {[%clk 0:01:05.7]} 23. Be3 {[%clk 0:01:48.5]} 23... Ne4 {[%clk 0:01:01.1]}
24. Rc1 {[%clk 0:01:39.7]} 24... Nf6 {[%clk 0:00:49.6]} 25. a4 {[%clk
0:01:33.7]} 25... Kd7 {[%clk 0:00:49.6]} 26. Bg5 {[%clk 0:01:26.9]} 26... Nxd5
{[%clk 0:00:46.3]} 27. cxd5 {[%clk 0:01:19.9]} 27... Bxg5 {[%clk 0:00:45.4]} 28.
Rb1 {[%clk 0:01:19.3]} 28... h4 {[%clk 0:00:43.1]} 29. h3 {[%clk 0:01:14.1]}
29... hxg3 {[%clk 0:00:41.5]} 30. fxg3 {[%clk 0:01:12.9]} 30... gxh3+ {[%clk
0:00:39.7]} 31. Nxh3 {[%clk 0:01:13.8]} 31... Be7 {[%clk 0:00:36.9]} 32. Nf2
{[%clk 0:01:13.3]} 32... Rag8 {[%clk 0:00:36.2]} 33. Ne4 {[%clk 0:01:11.4]}
33... Rf8 {[%clk 0:00:29.3]} 34. c4 {[%clk 0:01:09.7]} 34... Rhg8 {[%clk
0:00:27.8]} 35. Rf1 {[%clk 0:01:07.9]} 35... Rxf1 {[%clk 0:00:23.5]} 36. Kxf1
{[%clk 0:01:07.2]} 36... c6 {[%clk 0:00:24]} 37. Kg2 {[%clk 0:01:02.4]} 37...
cxd5 {[%clk 0:00:23.7]} 38. cxd5 {[%clk 0:01:02.5]} 38... Rc8 {[%clk 0:00:23.4]}
39. Rb2 {[%clk 0:01:02.8]} 39... Rc4 {[%clk 0:00:22.4]} 40. Kf3 {[%clk
0:01:02.8]} 40... Rxa4 {[%clk 0:00:19.5]} 41. Rxb6 {[%clk 0:01:02.3]} 41... Rd4
{[%clk 0:00:15.5]} 42. Rb7+ {[%clk 0:01:01.7]} 42... Ke8 {[%clk 0:00:15.6]} 43.
Rb5 {[%clk 0:01:00.6]} 43... a4 {[%clk 0:00:14.6]} 44. Ra5 {[%clk 0:01:00.1]}
44... Bd8 {[%clk 0:00:14.3]} 45. Nxd6+ {[%clk 0:00:57.4]} 45... Kd7 {[%clk
0:00:14.5]} 46. Ra6 {[%clk 0:00:56.5]} 46... Rxd5 {[%clk 0:00:12.8]} 47. Nf7
{[%clk 0:00:55.6]} 47... Ba5 {[%clk 0:00:07.3]} 48. Ke4 {[%clk 0:00:53.3]} 48...
Rb5 {[%clk 0:00:05]} 49. Nxe5+ {[%clk 0:00:52.4]} 49... Kc7 {[%clk 0:00:04.7]}
50. Nc4 {[%clk 0:00:52.3]} 50... Be1 {[%clk 0:00:03.3]} 51. g4 {[%clk
0:00:50.4]} 51... Rc5 {[%clk 0:00:01.6]} 52. Ne3 {[%clk 0:00:48.3]} 1-0

[Event "*** Titled Tuesday Blitz"]
[Site "Chess.com"]
[Date "2020.05.12"]
[Round "6"]
[White "Logman74"]
[Black "Chesswizard_2007"]
[Result "1-0"]
[WhiteElo "2382"]
[BlackElo "2556"]
[TimeControl "180+1"]
[EndTime "11:06:24 PDT"]
[Termination "Logman74 won by checkmate"]

1. e4 {[%clk 0:03:00.9]} 1... d6 {[%clk 0:03:00.9]} 2. d4 {[%clk 0:03:00.1]}
2... Nf6 {[%clk 0:03:01.7]} 3. Nc3 {[%clk 0:03:00.2]} 3... Nbd7 {[%clk
0:03:01.8]} 4. Nf3 {[%clk 0:02:59.8]} 4... e5 {[%clk 0:03:02.7]} 5. Bc4 {[%clk
0:02:59.1]} 5... Be7 {[%clk 0:03:02.1]} 6. O-O {[%clk 0:02:58.9]} 6... c6 {[%clk
0:03:00.6]} 7. Re1 {[%clk 0:02:58.7]} 7... Qc7 {[%clk 0:03:00.4]} 8. a4 {[%clk
0:02:55.3]} 8... h6 {[%clk 0:03:00.4]} 9. h3 {[%clk 0:02:51.3]} 9... g5 {[%clk
0:02:59.5]} 10. dxe5 {[%clk 0:02:49]} 10... Nxe5 {[%clk 0:02:30.9]} 11. Nxe5
{[%clk 0:02:48.3]} 11... dxe5 {[%clk 0:02:31.8]} 12. Be3 {[%clk 0:02:46.6]}
12... g4 {[%clk 0:02:29]} 13. h4 {[%clk 0:02:33.3]} 13... g3 {[%clk 0:02:27.7]}
14. fxg3 {[%clk 0:02:32]} 14... Ng4 {[%clk 0:02:20.9]} 15. Qf3 {[%clk
0:02:25.5]} 15... f6 {[%clk 0:02:16.7]} 16. Rad1 {[%clk 0:02:06.6]} 16... b6
{[%clk 0:02:14.5]} 17. Kh1 {[%clk 0:01:41]} 17... Bd7 {[%clk 0:01:59.2]} 18. Bg1
{[%clk 0:01:34.3]} 18... O-O-O {[%clk 0:01:56.6]} 19. Rxd7 {[%clk 0:01:28.8]}
19... Qxd7 {[%clk 0:01:57.5]} 20. Rd1 {[%clk 0:01:27.5]} 20... Bd6 {[%clk
0:01:41]} 21. Rxd6 {[%clk 0:01:18.9]} 21... Qxd6 {[%clk 0:01:41.9]} 22. Qxg4+
{[%clk 0:01:18.6]} 22... Kb8 {[%clk 0:01:38.4]} 23. Be3 {[%clk 0:01:16]} 23...
Qb4 {[%clk 0:01:30.9]} 24. Bb3 {[%clk 0:01:15.4]} 24... Qe7 {[%clk 0:01:22.4]}
25. Kh2 {[%clk 0:01:13.2]} 25... Rh7 {[%clk 0:01:18.8]} 26. a5 {[%clk
0:01:08.9]} 26... b5 {[%clk 0:01:16.3]} 27. Qf5 {[%clk 0:01:02.6]} 27... Rdh8
{[%clk 0:01:09]} 28. Qf2 {[%clk 0:01:01.6]} 28... h5 {[%clk 0:01:06.5]} 29. Bc5
{[%clk 0:01:00.1]} 29... Qd8 {[%clk 0:01:05.8]} 30. a6 {[%clk 0:00:56.9]} 30...
Rg7 {[%clk 0:01:04.7]} 31. Be6 {[%clk 0:00:52.8]} 31... b4 {[%clk 0:00:53.1]}
32. Bxb4 {[%clk 0:00:46.1]} 32... Qb6 {[%clk 0:00:52.6]} 33. Bd6+ {[%clk
0:00:37.3]} 33... Ka8 {[%clk 0:00:50.5]} 34. Qe2 {[%clk 0:00:37]} 34... Qxb2
{[%clk 0:00:45.8]} 35. Qc4 {[%clk 0:00:33.7]} 35... Qb6 {[%clk 0:00:41.3]} 36.
Na4 {[%clk 0:00:31.7]} 36... Rhg8 {[%clk 0:00:15.4]} 37. Nxb6+ {[%clk
0:00:30.3]} 37... axb6 {[%clk 0:00:16.3]} 38. Qxc6+ {[%clk 0:00:29.5]} 38... Ka7
{[%clk 0:00:17.2]} 39. Bxg8 {[%clk 0:00:29.2]} 39... Kxa6 {[%clk 0:00:16.8]} 40.
Bc4+ {[%clk 0:00:27.8]} 40... Ka7 {[%clk 0:00:16.4]} 41. Bc7 {[%clk 0:00:28.2]}
41... Rxc7 {[%clk 0:00:13.1]} 42. Qxc7+ {[%clk 0:00:27.9]} 42... Ka8 {[%clk
0:00:14]} 43. Bd5# {[%clk 0:00:27.9]} 1-0

[Event "*** Titled Tuesday Blitz"]
[Site "Chess.com"]
[Date "2020.05.12"]
[Round "6"]
[White "2nd_life"]
[Black "ChessQueen"]
[Result "1-0"]
[WhiteElo "2422"]
[BlackElo "2608"]
[TimeControl "180+1"]
[EndTime "11:06:25 PDT"]
[Termination "2nd_life won by resignation"]

1. Nf3 {[%clk 0:03:00.5]} 1... Nf6 {[%clk 0:02:59.2]} 2. g3 {[%clk 0:02:58.4]}
2... b6 {[%clk 0:02:59.5]} 3. Bg2 {[%clk 0:02:54.1]} 3... Bb7 {[%clk 0:03:00]}
4. d3 {[%clk 0:02:50.7]} 4... e6 {[%clk 0:02:56.9]} 5. e4 {[%clk 0:02:48.9]}
5... d5 {[%clk 0:02:54.9]} 6. e5 {[%clk 0:02:47]} 6... Nfd7 {[%clk 0:02:54.9]}
7. O-O {[%clk 0:02:44.8]} 7... Be7 {[%clk 0:02:53.9]} 8. Re1 {[%clk 0:02:42.6]}
8... c5 {[%clk 0:02:51.5]} 9. h4 {[%clk 0:02:37]} 9... Nc6 {[%clk 0:02:49]} 10.
Bf4 {[%clk 0:02:31.6]} 10... h6 {[%clk 0:02:46]} 11. h5 {[%clk 0:02:30.2]} 11...
Qc7 {[%clk 0:02:43.9]} 12. Nbd2 {[%clk 0:02:23.4]} 12... O-O-O {[%clk
0:02:35.2]} 13. c3 {[%clk 0:02:22.4]} 13... g5 {[%clk 0:02:31]} 14. hxg6 {[%clk
0:02:21.4]} 14... fxg6 {[%clk 0:02:31.9]} 15. d4 {[%clk 0:02:19.4]} 15... g5
{[%clk 0:02:27.8]} 16. Be3 {[%clk 0:02:19]} 16... Rdg8 {[%clk 0:02:11.4]} 17. a3
{[%clk 0:01:59.1]} 17... h5 {[%clk 0:02:10.6]} 18. b4 {[%clk 0:01:58.9]} 18...
g4 {[%clk 0:01:54]} 19. Nh2 {[%clk 0:01:42.2]} 19... h4 {[%clk 0:01:51.3]} 20.
Ndf1 {[%clk 0:01:30.2]} 20... hxg3 {[%clk 0:01:37.2]} 21. fxg3 {[%clk 0:01:22]}
21... Bg5 {[%clk 0:01:23.1]} 22. Qd2 {[%clk 0:01:15.1]} 22... Bxe3+ {[%clk
0:00:54.7]} 23. Nxe3 {[%clk 0:01:14.1]} 23... Ndxe5 {[%clk 0:00:54.6]} 24. dxe5
{[%clk 0:01:12]} 24... Nxe5 {[%clk 0:00:55.5]} 25. Nef1 {[%clk 0:00:57.6]} 25...
Nf3+ {[%clk 0:00:46.9]} 26. Nxf3 {[%clk 0:00:53.7]} 26... gxf3 {[%clk
0:00:47.8]} 27. Bxf3 {[%clk 0:00:54.1]} 27... Rh3 {[%clk 0:00:43.8]} 28. Bg2
{[%clk 0:00:44]} 28... Rh7 {[%clk 0:00:18.2]} 29. Rxe6 {[%clk 0:00:40.3]} 29...
Rhg7 {[%clk 0:00:17.5]} 30. Rae1 {[%clk 0:00:38]} 30... Qd7 {[%clk 0:00:17.4]}
31. bxc5 {[%clk 0:00:36.6]} 31... bxc5 {[%clk 0:00:17.1]} 32. c4 {[%clk
0:00:24.3]} 32... d4 {[%clk 0:00:15.1]} 33. Bxb7+ {[%clk 0:00:22.4]} 33... Kxb7
{[%clk 0:00:15.5]} 34. Qg2+ {[%clk 0:00:21.5]} 34... Kc7 {[%clk 0:00:14.2]} 35.
R1e5 {[%clk 0:00:20.1]} 35... Rg5 {[%clk 0:00:12.4]} 36. Rxg5 {[%clk 0:00:19.2]}
36... Rxg5 {[%clk 0:00:11.7]} 37. Qe4 {[%clk 0:00:19.3]} 37... Rg7 {[%clk
0:00:09]} 38. Qe5+ {[%clk 0:00:19.5]} 38... Kb7 {[%clk 0:00:08.3]} 39. Rd6
{[%clk 0:00:17.1]} 39... Qg4 {[%clk 0:00:05.6]} 40. Qd5+ {[%clk 0:00:16.1]} 1-0

[Event "*** Titled Tuesday Blitz"]
[Site "Chess.com"]
[Date "2020.05.12"]
[Round "6"]
[White "Oligan22"]
[Black "pirulillo"]
[Result "0-1"]
[WhiteElo "2379"]
[BlackElo "2205"]
[TimeControl "180+1"]
[EndTime "11:06:25 PDT"]
[Termination "pirulillo won by checkmate"]

1. e4 {[%clk 0:03:00.9]} 1... c5 {[%clk 0:02:55.9]} 2. Nf3 {[%clk 0:03:00.5]}
2... e6 {[%clk 0:02:54.3]} 3. d4 {[%clk 0:03:00.9]} 3... cxd4 {[%clk 0:02:51.7]}
4. Nxd4 {[%clk 0:03:01.8]} 4... Nf6 {[%clk 0:02:50.3]} 5. Nc3 {[%clk 0:03:02.3]}
5... Nc6 {[%clk 0:02:49.6]} 6. Nxc6 {[%clk 0:02:59.4]} 6... bxc6 {[%clk
0:02:49.6]} 7. e5 {[%clk 0:03:00]} 7... Nd5 {[%clk 0:02:49.4]} 8. Ne4 {[%clk
0:03:00.5]} 8... Bb7 {[%clk 0:02:49.3]} 9. c4 {[%clk 0:02:53.5]} 9... Nb4 {[%clk
0:02:40.8]} 10. c5 {[%clk 0:02:43.7]} 10... Ba6 {[%clk 0:02:34.6]} 11. a3 {[%clk
0:02:14.1]} 11... Nd5 {[%clk 0:02:27.2]} 12. Bxa6 {[%clk 0:01:54.8]} 12... Qa5+
{[%clk 0:02:26.3]} 13. b4 {[%clk 0:01:54.8]} 13... Qxa6 {[%clk 0:02:26.5]} 14.
Qe2 {[%clk 0:01:54]} 14... Qxe2+ {[%clk 0:02:25.1]} 15. Kxe2 {[%clk 0:01:54]}
15... a5 {[%clk 0:02:23.3]} 16. Bd2 {[%clk 0:01:51.6]} 16... f5 {[%clk
0:02:19.3]} 17. exf6 {[%clk 0:01:49.7]} 17... gxf6 {[%clk 0:02:19.2]} 18. bxa5
{[%clk 0:01:39.2]} 18... f5 {[%clk 0:02:19]} 19. Nd6+ {[%clk 0:01:36.7]} 19...
Bxd6 {[%clk 0:02:18.7]} 20. cxd6 {[%clk 0:01:37.6]} 20... Kf7 {[%clk 0:02:14]}
21. Rab1 {[%clk 0:01:37.5]} 21... e5 {[%clk 0:02:00.9]} 22. Rb7 {[%clk
0:01:07.9]} 22... Ke6 {[%clk 0:02:00.6]} 23. Rhb1 {[%clk 0:01:08.4]} 23... Kxd6
{[%clk 0:01:57.9]} 24. g3 {[%clk 0:01:07.4]} 24... h5 {[%clk 0:01:54.4]} 25. h4
{[%clk 0:01:06.9]} 25... Rhg8 {[%clk 0:01:45.3]} 26. Kd3 {[%clk 0:01:02.3]}
26... Rg4 {[%clk 0:01:41.4]} 27. Bb4+ {[%clk 0:00:53.2]} 27... c5 {[%clk
0:01:37.4]} 28. Bd2 {[%clk 0:00:28.4]} 28... f4 {[%clk 0:01:05.9]} 29. gxf4
{[%clk 0:00:24.5]} 29... exf4 {[%clk 0:01:05.5]} 30. Ke4 {[%clk 0:00:18.4]}
30... Re8+ {[%clk 0:01:01]} 31. Kf3 {[%clk 0:00:17.7]} 31... Rxh4 {[%clk
0:01:00.4]} 32. Rd1 {[%clk 0:00:16.8]} 32... Rh3+ {[%clk 0:00:55.7]} 33. Kg2
{[%clk 0:00:16.7]} 33... Rd3 {[%clk 0:00:55.2]} 34. a6 {[%clk 0:00:17]} 34...
Rg8+ {[%clk 0:00:52.6]} 35. Kh2 {[%clk 0:00:16.8]} 35... Kc6 {[%clk 0:00:46.1]}
36. Rb2 {[%clk 0:00:16]} 36... Rg4 {[%clk 0:00:23.3]} 37. f3 {[%clk 0:00:13.6]}
37... Rxf3 {[%clk 0:00:22.1]} 38. a7 {[%clk 0:00:13.9]} 38... Nc7 {[%clk
0:00:20.7]} 39. Rb8 {[%clk 0:00:12]} 39... Rfg3 {[%clk 0:00:19.7]} 40. Ba5
{[%clk 0:00:11.5]} 40... Rh4# {[%clk 0:00:19.1]} 0-1

[Event "*** Titled Tuesday Blitz"]
[Site "Chess.com"]
[Date "2020.05.12"]
[Round "6"]
[White "CalinGheorghiu"]
[Black "Mouse-Sleep"]
[Result "0-1"]
[WhiteElo "2311"]
[BlackElo "2507"]
[TimeControl "180+1"]
[EndTime "11:06:26 PDT"]
[Termination "Mouse-Sleep won by resignation"]

1. e4 {[%clk 0:02:57.2]} 1... c5 {[%clk 0:02:59.6]} 2. Nf3 {[%clk 0:02:56.7]}
2... d6 {[%clk 0:02:59.9]} 3. d4 {[%clk 0:02:48.1]} 3... cxd4 {[%clk 0:03:00.8]}
4. Nxd4 {[%clk 0:02:48.1]} 4... Nf6 {[%clk 0:03:01]} 5. Nc3 {[%clk 0:02:48.6]}
5... g6 {[%clk 0:03:01.7]} 6. f3 {[%clk 0:02:45.2]} 6... Bg7 {[%clk 0:03:02.2]}
7. Be3 {[%clk 0:02:45.4]} 7... O-O {[%clk 0:03:02.8]} 8. Bc4 {[%clk 0:02:40.9]}
8... Nc6 {[%clk 0:03:03.2]} 9. Qd2 {[%clk 0:02:40.7]} 9... Bd7 {[%clk
0:03:03.7]} 10. O-O-O {[%clk 0:02:40.1]} 10... Rc8 {[%clk 0:03:04.3]} 11. Bb3
{[%clk 0:02:40.5]} 11... Nxd4 {[%clk 0:03:04.9]} 12. Bxd4 {[%clk 0:02:39.7]}
12... a5 {[%clk 0:03:05.5]} 13. a4 {[%clk 0:02:15]} 13... b5 {[%clk 0:03:04.4]}
14. axb5 {[%clk 0:02:11.4]} 14... a4 {[%clk 0:03:05.3]} 15. Bxa4 {[%clk
0:02:05.6]} 15... Qa5 {[%clk 0:03:03.9]} 16. Bb3 {[%clk 0:01:41.4]} 16... Bxb5
{[%clk 0:02:59.8]} 17. Na2 {[%clk 0:01:15.9]} 17... Qa6 {[%clk 0:02:34]} 18. Kb1
{[%clk 0:00:39.3]} 18... Bc4 {[%clk 0:02:29]} 19. Bxc4 {[%clk 0:00:36.9]} 19...
Rxc4 {[%clk 0:02:29.9]} 20. b3 {[%clk 0:00:32.8]} 20... Ra8 {[%clk 0:01:17.1]}
21. c3 {[%clk 0:00:22.3]} 21... e5 {[%clk 0:00:29.5]} 22. Be3 {[%clk 0:00:18.3]}
22... Rc6 {[%clk 0:00:21.6]} 23. Qb2 {[%clk 0:00:16.7]} 23... Qc8 {[%clk
0:00:13]} 24. Nb4 {[%clk 0:00:16.3]} 24... Rc7 {[%clk 0:00:08.6]} 25. Rd3 {[%clk
0:00:11.9]} 25... Bf8 {[%clk 0:00:06.6]} 26. g4 {[%clk 0:00:07.7]} 26... d5
{[%clk 0:00:06.9]} 27. Nxd5 {[%clk 0:00:06.8]} 27... Nxd5 {[%clk 0:00:06.9]} 28.
exd5 {[%clk 0:00:06.9]} 28... Qa6 {[%clk 0:00:07.4]} 29. Rd2 {[%clk 0:00:03.7]}
29... Rac8 {[%clk 0:00:05.2]} 30. c4 {[%clk 0:00:03.4]} 30... Bb4 {[%clk
0:00:05.7]} 31. Rc2 {[%clk 0:00:03.2]} 31... Ba3 {[%clk 0:00:05.7]} 32. Qxe5
{[%clk 0:00:03.3]} 32... Rb7 {[%clk 0:00:05.3]} 33. Bd4 {[%clk 0:00:03.3]} 33...
Rxb3+ {[%clk 0:00:05.1]} 34. Ka2 {[%clk 0:00:03.2]} 34... Bd6+ {[%clk
0:00:03.2]} 0-1

[Event "*** Titled Tuesday Blitz"]
[Site "Chess.com"]
[Date "2020.05.12"]
[Round "6"]
[White "Lion-Al-Messi"]
[Black "Andrei_Belozerov"]
[Result "0-1"]
[WhiteElo "2449"]
[BlackElo "2599"]
[TimeControl "180+1"]
[EndTime "11:06:28 PDT"]
[Termination "Andrei_Belozerov won on time"]

1. e4 {[%clk 0:03:00.9]} 1... c5 {[%clk 0:02:59.1]} 2. Nf3 {[%clk 0:03:01.4]}
2... d6 {[%clk 0:02:59.3]} 3. d4 {[%clk 0:03:01.6]} 3... cxd4 {[%clk 0:02:59.7]}
4. Nxd4 {[%clk 0:03:02.5]} 4... Nf6 {[%clk 0:03:00.1]} 5. Nc3 {[%clk 0:03:03]}
5... a6 {[%clk 0:03:00.7]} 6. h3 {[%clk 0:03:02.1]} 6... e5 {[%clk 0:03:00.2]}
7. Nde2 {[%clk 0:03:01.9]} 7... h5 {[%clk 0:02:59.3]} 8. Bg5 {[%clk 0:02:58.4]}
8... Be7 {[%clk 0:02:51]} 9. g3 {[%clk 0:02:56.9]} 9... Nbd7 {[%clk 0:02:50.1]}
10. a4 {[%clk 0:02:49.7]} 10... b6 {[%clk 0:02:49.7]} 11. Bg2 {[%clk 0:02:49]}
11... Bb7 {[%clk 0:02:49.8]} 12. O-O {[%clk 0:02:44.9]} 12... O-O {[%clk
0:02:48.1]} 13. Be3 {[%clk 0:02:28.5]} 13... b5 {[%clk 0:02:41.1]} 14. axb5
{[%clk 0:02:24.4]} 14... axb5 {[%clk 0:02:40.6]} 15. Qd2 {[%clk 0:02:23.5]}
15... b4 {[%clk 0:02:32.3]} 16. Nd5 {[%clk 0:02:05.4]} 16... Nxd5 {[%clk
0:02:31.6]} 17. exd5 {[%clk 0:02:06.3]} 17... Nf6 {[%clk 0:02:31.6]} 18. Bg5
{[%clk 0:01:56.5]} 18... Qb6 {[%clk 0:02:19.1]} 19. Kh2 {[%clk 0:01:51.9]} 19...
Rfc8 {[%clk 0:02:08.3]} 20. Rxa8 {[%clk 0:01:49.3]} 20... Bxa8 {[%clk
0:02:06.2]} 21. Be3 {[%clk 0:01:48.7]} 21... Qb5 {[%clk 0:02:03.1]} 22. Rd1
{[%clk 0:01:48.7]} 22... Bxd5 {[%clk 0:01:53.9]} 23. Bxd5 {[%clk 0:01:46.9]}
23... Nxd5 {[%clk 0:01:54]} 24. Qxd5 {[%clk 0:01:45.4]} 24... Qxe2 {[%clk
0:01:54]} 25. Rd2 {[%clk 0:01:40.8]} 25... Qc4 {[%clk 0:01:49.2]} 26. Qb7 {[%clk
0:01:38.7]} 26... Rc7 {[%clk 0:01:43.5]} 27. Qa8+ {[%clk 0:01:35.6]} 27... Kh7
{[%clk 0:01:42.3]} 28. Qe8 {[%clk 0:01:34.1]} 28... Bf6 {[%clk 0:01:34.5]} 29.
Rxd6 {[%clk 0:01:27.1]} 29... Qxc2 {[%clk 0:01:24.4]} 30. Rb6 {[%clk 0:01:15.1]}
30... h4 {[%clk 0:01:07]} 31. g4 {[%clk 0:01:09.3]} 31... Bg5 {[%clk 0:00:57.3]}
32. Rb8 {[%clk 0:01:09.2]} 32... Bxe3 {[%clk 0:00:56.2]} 33. Qh8+ {[%clk
0:01:09.1]} 33... Kg6 {[%clk 0:00:55.4]} 34. Qh5+ {[%clk 0:01:00.3]} 34... Kf6
{[%clk 0:00:55.6]} 35. Qxh4+ {[%clk 0:00:32.5]} 35... Bg5 {[%clk 0:00:54.5]} 36.
Rb6+ {[%clk 0:00:04.1]} 36... Rc6 {[%clk 0:00:54.3]} 37. Rxc6+ {[%clk
0:00:04.1]} 37... Qxc6 {[%clk 0:00:53.5]} 38. Qh8 {[%clk 0:00:03.3]} 38... Bf4+
{[%clk 0:00:46.6]} 39. Kg1 {[%clk 0:00:03.1]} 39... Qd5 {[%clk 0:00:33.9]} 40.
Qh4+ {[%clk 0:00:01.5]} 40... Bg5 {[%clk 0:00:32.6]} 41. Qg3 {[%clk 0:00:01.5]}
41... e4 {[%clk 0:00:30.6]} 42. h4 {[%clk 0:00:01.4]} 42... Bd2 {[%clk
0:00:26.8]} 43. g5+ {[%clk 0:00:01.4]} 43... Ke6 {[%clk 0:00:26.2]} 0-1

[Event "*** Titled Tuesday Blitz"]
[Site "Chess.com"]
[Date "2020.05.12"]
[Round "6"]
[White "julinha97"]
[Black "Generalas"]
[Result "0-1"]
[WhiteElo "2187"]
[BlackElo "2389"]
[TimeControl "180+1"]
[EndTime "11:06:29 PDT"]
[Termination "Generalas won by resignation"]

1. e4 {[%clk 0:03:00.9]} 1... e5 {[%clk 0:02:59.6]} 2. Nf3 {[%clk 0:03:00.8]}
2... Nc6 {[%clk 0:02:58.7]} 3. d4 {[%clk 0:03:01.2]} 3... exd4 {[%clk
0:02:58.3]} 4. Bc4 {[%clk 0:03:01.9]} 4... Nf6 {[%clk 0:02:57.6]} 5. e5 {[%clk
0:03:02.4]} 5... d5 {[%clk 0:02:57.2]} 6. Bb5 {[%clk 0:03:03]} 6... Ne4 {[%clk
0:02:56.8]} 7. Nxd4 {[%clk 0:03:03.4]} 7... Bc5 {[%clk 0:02:56.7]} 8. Bxc6+
{[%clk 0:02:49.2]} 8... bxc6 {[%clk 0:02:55.8]} 9. Be3 {[%clk 0:01:55.7]} 9...
Ba6 {[%clk 0:02:31.9]} 10. c3 {[%clk 0:01:44.6]} 10... Qh4 {[%clk 0:02:20.2]}
11. Nd2 {[%clk 0:01:20.6]} 11... O-O {[%clk 0:02:02]} 12. N2f3 {[%clk 0:01:19]}
12... Qg4 {[%clk 0:01:58.4]} 13. g3 {[%clk 0:01:04]} 13... Rfe8 {[%clk
0:01:41.8]} 14. Qa4 {[%clk 0:00:59.9]} 14... Bxd4 {[%clk 0:01:29.3]} 15. Nxd4
{[%clk 0:00:57.8]} 15... Bb7 {[%clk 0:01:02.7]} 16. f3 {[%clk 0:00:47.4]} 16...
Nc5 {[%clk 0:01:00.6]} 17. fxg4 {[%clk 0:00:43.9]} 17... Nxa4 {[%clk 0:01:00]}
18. Kd2 {[%clk 0:00:28]} 18... Rxe5 {[%clk 0:00:55.7]} 19. Bf4 {[%clk
0:00:26.8]} 19... Re7 {[%clk 0:00:51.1]} 20. Nf5 {[%clk 0:00:25.2]} 20... Rd7
{[%clk 0:00:50.9]} 21. b3 {[%clk 0:00:24.3]} 21... Nc5 {[%clk 0:00:50.4]} 22.
Rhe1 {[%clk 0:00:21.9]} 22... Ne4+ {[%clk 0:00:50]} 23. Kd3 {[%clk 0:00:22.5]}
23... g6 {[%clk 0:00:44.7]} 24. Ne3 {[%clk 0:00:20.3]} 24... Re8 {[%clk
0:00:42.8]} 25. g5 {[%clk 0:00:19.6]} 25... Ba6+ {[%clk 0:00:40.4]} 26. Kc2
{[%clk 0:00:19.2]} 26... Nf2 {[%clk 0:00:37.7]} 27. c4 {[%clk 0:00:08.6]} 27...
Kg7 {[%clk 0:00:27.8]} 28. Rf1 {[%clk 0:00:08.1]} 28... Ne4 {[%clk 0:00:21.9]}
29. h4 {[%clk 0:00:08]} 29... d4 {[%clk 0:00:20]} 30. Ng4 {[%clk 0:00:07.6]}
30... d3+ {[%clk 0:00:19.8]} 31. Kd1 {[%clk 0:00:08.3]} 31... Rde7 {[%clk
0:00:18.9]} 32. Bd2 {[%clk 0:00:06.5]} 32... Bc8 {[%clk 0:00:18.1]} 33. Nf6
{[%clk 0:00:06]} 33... Rd8 {[%clk 0:00:17.7]} 34. Nxe4 {[%clk 0:00:06.2]} 34...
Rxe4 {[%clk 0:00:17.3]} 35. h5 {[%clk 0:00:07]} 35... gxh5 {[%clk 0:00:16.9]}
36. Bc3+ {[%clk 0:00:07.2]} 36... Kf8 {[%clk 0:00:16.3]} 37. Bf6 {[%clk
0:00:08.1]} 37... Bg4+ {[%clk 0:00:16.1]} 38. Kd2 {[%clk 0:00:08.1]} 38... Rd6
{[%clk 0:00:15.6]} 39. Rf2 {[%clk 0:00:07.9]} 39... Re2+ {[%clk 0:00:14.9]} 40.
Rxe2 {[%clk 0:00:08.2]} 40... dxe2+ {[%clk 0:00:15.8]} 41. Ke1 {[%clk
0:00:09.1]} 41... Rd1+ {[%clk 0:00:15.3]} 0-1